Workbook

Sheet Pasiūlymas
A2: PIRKIMO SĄLYGŲ PRIEDAS "PASIŪLYMŲ FORMA"
A4: CHIRURGINIAI SIŪLAI
A6: Kam: | B6: VšĮ LSMU Kauno ligoninė
A8: Data: | B8: 2022-11-28
A9: Nr.: | B9: Nr.63-22PK
A10: Vieta: | B10: Vilnius
A12: Tiekėjo pavadinimas / Ūkio subjektų grupės nariai: | C12: UAB Airimedus
A13: Tiekėjo kodas (-ai): | C13: 126237331
A14: Tiekėjo adresas (-ai): | C14: A,Stulginskio 5-10, Vilnius
A15: Tiekėjo PVM mokėtojo kodas(-ai): | C15: LT100001077410
A16: Tiekėjo / Ūkio subjektų grupės atsakingo partnerio sąskaitos numeris, banko pavadinimas ir banko kodas (-ai): | C16: AB Šiaulių bankas LT04 7182 4000 2746 7098
A17: Asmens atsakingo už pasiūlymą vardas, pavardė: | C17: Liutauras Dauderys
A18: Asmens atsakingo už pasiūlymą telefono numeris, el. pašto adresas: | C18: 8 685 65001; info@airimedus.lt
A19: Tiekėjo / Ūkio subjektų grupės, laimėjimo atveju, pasirašančio sutartį asmens vardas, pavardė, pareigos: | C19: direktorius Liutauras Dauderys
A20: Tiekėjo / Ūkio subjektų grupės, laimėjimo atveju, už sutarties vykdymą atsakingo asmens vardas, pavardė, telefono numeris, elektroninio pašto adresas: | C20: direktorius Liutauras Dauderys
A21: (1) Tiekėjo / Ūkio subjektų grupės narių, (2) ūkio subjektų, kurių pajėgumais remiamasi, ir (3) jei pašalinimo pagrindai taikomi visiems subtiekėjams - subtiekėjų, kolegialaus priežiūros organo (Stebėtojų tarybos) ir (ar) kolegialaus valdymo organo (Valdybos) narių sąrašas (jei sudaryta) ir (ar) asmuo, kuriam suteikti VPĮ 46 str. 2 d. 2 p. numatyti įgaliojimai | G21: =IF((SUMPRODUCT(--(C21=""))>0), "Privaloma užpildyti, kai taikomi pašalinimo pagrindai", "") -> Privaloma užpildyti, kai taikomi pašalinimo pagrindai
A23: Tiekėjo patvirtinimai:
A24: 1. Šiuo pasiūlymu pažymime, kad sutinkame su visomi pirkimo sąlygomis, nustatytomis:
A25: 1.1. viešojo pirkimo dokumentuose
A26: 1.2. kituose pirkimo dokumentuose (jų paaiškinimuose, papildymuose).
A27: 2. Patvirtiname, kad informacija ir duomenys, pateikti pasiūlyme, yra teisingi ir apima viską, ko reikia tinkamam sutarties įvykdymui
A28: 3. Patvirtiname, kad jei pasiūlyme nenurodyti kolegialaus priežiūros/valdymo organų nariai, šie organai juridiniuose asmenyse nėra sudaryti (taikoma, kai pirkimo dokumentuose nustatyti pašalinimo pagrindai).
A29: 4. Pasiūlymas galioja iki termino, nustatyto pirkimo dokumentuose.
A30: 5. Tais atvejais, kai pagal galiojančius teisės aktus tiekėjui nereikia mokėti PVM, jis nurodo priežastis, dėl kurių PVM nemoka:
A33: 3. DALIS | B33: BESIREZORBUOJANTIS SINTETINIS POLIGLAKTINO CHIRURGINIS SIŪLAS
A35: Tiekėjo pasiūlymas:
A36: Nr. | B36: Pavadinimas | C36: Kiekis | D36: Mato vienetas | E36: Įkainis be PVM, Eur | F36: Suma be PVM, Eur | G36: Siūlomos prekės, pavadinimas, gamintojas, kodas | H36: Tiekėjo siūlomi parametrai ir parametrą pagrindžiantys dokumentai
A37: 3. | B37: Besirezorbuojantis sintetinis poliglaktino chirurginis siūlas
A38: 3.1. | B38: Besirezorbuojantis sintetinis poliglaktino chirurginis siūlas | C38: 12 | D38: vnt | E38: 1.03 | F38: =IF(ISBLANK(E38),"", PRODUCT(C38,E38)) -> 12.36 | G38: SMI ag. Surgicryl 910. Ref 15101512
A39: 3.1.1. | B39: Poliglaktino chirurginis siūlas , multifilamentinis | H39: Katalogas. 9 -18 puslapis. Poliglaktinas
A40: 3.1.2. | B40: Po 2 sav.išlieka 75 (±5%), po 3 sav. išlieka 40-50 (±5%) stiprumo. Siūlas rezorbuojasi per 56-70 dienų. | H40: Po 3 sav išlieka 50%. Siūlas rezorbuojasi per 56-70 dienų
A41: 3.1.3. | B41: Siūlo storis 5/0 | H41: storis 5/0
A42: 3.1.4. | B42: Siūlo ilgis 45 cm (± 1cm) | H42: siūlo ilgis 45cm
A43: 3.1.5. | B43: Siūlų skaičius pakelyje ne daugiau1 vnt | H43: pakeluje 1
A44: 3.1.6. | B44: Adatos tipas - pjaunanti 3/8 | H44: adata pjaunanti 3/8
A45: 3.1.7. | B45: Adatų skaičius ne daugiau 1 vnt | H45: adata1
A46: 3.1.8. | B46: Adatos ilgis 12 mm (±1mm) | H46: adatos ilgis 12mm
A47: 3.2. | B47: Besirezorbuojantis sintetinis poliglaktino chirurginis siūlas | C47: 48 | D47: vnt | E47: 1.06 | F47: =IF(ISBLANK(E47),"", PRODUCT(C47,E47)) -> 50.88 | G47: SMI ag. Surgicryl 910. Ref 15071512
A48: 3.2.1. | B48: Poliglaktino chirurginis siūlas , multifilamentinis | H48: Katalogas. 9 -18 puslapis. Poliglaktinas
A49: 3.2.2. | B49: Po 2 sav.išlieka 75 (±5%), po 3 sav. išlieka 40-50 (±5%) stiprumo. Siūlas rezorbuojasi per 56-70 dienų. | H49: Po 3 sav išlieka 50%. Siūlas rezorbuojasi per 56-70 dienų
A50: 3.2.3. | B50: Siūlo storis 6/0 | H50: storis 6/0
A51: 3.2.4. | B51: Siūlo ilgis 45 cm (± 1cm) | H51: siūlo ilgis 45cm
A52: 3.2.5. | B52: Siūlų skaičius pakelyje ne daugiau 1 vnt | H52: pakeluje 1
A53: 3.2.6. | B53: Adatos tipas -pjaunanti 3/8 | H53: adata pjaunanti 3/8
A54: 3.2.7. | B54: Adatų skaičius ne daugiau 1 vnt | H54: adata1
A55: 3.2.8. | B55: Adatos ilgis 12 mm (±1mm) | H55: adatos ilgis 12mm
A56: 3.3. | B56: Besirezorbuojantis sintetinis poliglaktino chirurginis siūlas | C56: 600 | D56: vnt. | E56: 0.92 | F56: =IF(ISBLANK(E56),"", PRODUCT(C56,E56)) -> 552 | G56: SMI ag. Surgicryl 910. Ref 15300126
A57: 3.3.1. | B57: Poliglaktino chirurginis siūlas , multifilamentinis | H57: Katalogas. 9 -18 puslapis. Poliglaktinas
A58: 3.3.2. | B58: Po 2 sav.išlieka 75 (±5%), po 3 sav. išlieka 40-50 (±5%) stiprumo. Siūlas rezorbuojasi per 56-70 dienų. | H58: Po 3 sav išlieka 50%. Siūlas rezorbuojasi per 56-70 dienų
A59: 3.3.3. | B59: Siūlo storis 2/0 | H59: storis 2/0
A60: 3.3.4. | B60: Siūlo ilgis 75 cm (± 5cm) | H60: siūlo ilgis 75cm
A61: 3.3.5. | B61: Siūlų skaičius pakelyje ne daugiau 1 vnt. | H61: pakelyje 1
A62: 3.3.6. | B62: Adatos tipas - apvali 1/2 | H62: adata apvali 1/2
A63: 3.3.7. | B63: Adatų skaičius ne daugiau 1 vnt | H63: adata1
A64: 3.3.8. | B64: Adatos ilgis 25 - 27 mm | H64: adatos ilgis 26 mm
A65: 3.4. | B65: Besirezorbuojantis sintetinis poliglaktino chirurginis siūlas | C65: 240 | D65: vnt. | E65: 0.93 | F65: =IF(ISBLANK(E65),"", PRODUCT(C65,E65)) -> 223.2 | G65: SMI ag. Surgicryl 910. Ref 15150126
A66: 3.4.1. | B66: Poliglaktino chirurginis siūlas , multifilamentinis | H66: Katalogas. 9 -18 puslapis. Poliglaktinas
A67: 3.4.2. | B67: Po 2 sav.išlieka 75 (±5%), po 3 sav. išlieka 40-50 (±5%) stiprumo. Siūlas rezorbuojasi per 56-70 dienų. | H67: Po 3 sav išlieka 50%. Siūlas rezorbuojasi per 56-70 dienų
A68: 3.4.3. | B68: Siūlo storis 4/0 | H68: storis 4/0
A69: 3.4.4. | B69: Siūlo ilgis 75 cm (± 5cm) | H69: siūlo ilgis 75cm
A70: 3.4.5. | B70: Siūlų skaičius pakelyje ne daugiau 1 vnt. | H70: pakelyje 1
A71: 3.4.6. | B71: Adatos tipas - apvali 1/2 | H71: adata apvali 1/2
A72: 3.4.7. | B72: Adatų skaičius ne daugiau 1 vnt | H72: adata1
A73: 3.4.8. | B73: Adatos ilgis 26 - 27 mm | H73: adatos ilgis 26 mm
A74: 3.5. | B74: Besirezorbuojantis sintetinis poliglaktino chirurginis siūlas | C74: 120 | D74: vnt. | E74: 2.48 | F74: =IF(ISBLANK(E74),"", PRODUCT(C74,E74)) -> 297.6 | G74: SMI ag. Surgicryl 910. Ref 15150045
A75: 3.5.1. | B75: Poliglaktino chirurginis siūlas , multifilamentinis | H75: Katalogas. 9 -18 puslapis. Poliglaktinas
A76: 3.5.2. | B76: Po 2 sav.išlieka 75 (±5%), po 3 sav. išlieka 40-50 (±5%) stiprumo. Siūlas rezorbuojasi per 56-70 dienų. | H76: Po 3 sav išlieka 50%. Siūlas rezorbuojasi per 56-70 dienų
A77: 3.5.3. | B77: Siūlo storis 4/0 | H77: storis 4/0
A78: 3.5.4. | B78: Siūlo ilgis 45 cm (± 1cm) | H78: siūlo ilgis 45cm
A79: 3.5.5. | B79: Siūlų skaičius pakelyje ne mažiau 12 vnt. | H79: pakelyje 12
A80: 3.6. | B80: Besirezorbuojantis sintetinis poliglaktino chirurginis siūlas | C80: 48 | D80: vnt. | E80: 1.32 | F80: =IF(ISBLANK(E80),"", PRODUCT(C80,E80)) -> 63.36 | G80: SMI ag. Surgicryl 910. Ref 15150045-6
A81: 3.6.1. | B81: Poliglaktino chirurginis siūlas , multifilamentinis | H81: Katalogas. 9 -18 puslapis. Poliglaktinas
A82: 3.6.2. | B82: Po 2 sav.išlieka 75 (±5%), po 3 sav. išlieka 40-50 (±5%) stiprumo. Siūlas rezorbuojasi per 56-70 dienų. | H82: Po 3 sav išlieka 50%. Siūlas rezorbuojasi per 56-70 dienų
A83: 3.6.3. | B83: Siūlo storis 4/0 | H83: storis 4/0
A84: 3.6.4. | B84: Siūlo ilgis 45 cm (± 1cm) | H84: siūlo ilgis 45cm
A85: 3.6.5. | B85: Siūlų skaičius pakelyje ne mažiau 6 vnt. | H85: pakelyje 6
A86: 3.7. | B86: Besirezorbuojantis sintetinis poliglaktino chirurginis siūlas | C86: 300 | D86: vnt. | E86: 4.5 | F86: =IF(ISBLANK(E86),"", PRODUCT(C86,E86)) -> 1350 | G86: SMI ag. Surgicryl 910. Ref O910072
A87: 3.7.1. | B87: Poliglaktino chirurginis siūlas , multifilamentinis | H87: Katalogas. 97 puslapis. Poliglaktinas
A88: 3.7.2. | B88: Po 2 sav.išlieka 75 (±5%), po 3 sav. išlieka 40-50 (±5%) stiprumo. Siūlas rezorbuojasi per 56-70 dienų. | H88: Po 3 sav išlieka 50%. Siūlas rezorbuojasi per 56-70 dienų
A89: 3.7.3. | B89: Siūlo storis 7/0 | H89: storis 7/0
A90: 3.7.4. | B90: Siūlo ilgis 45 cm (± 1cm) | H90: siūlo ilgis 45cm
A91: 3.7.5. | B91: Siūlų skaičius pakelyje ne daugiau 1 vnt. | H91: pakelyje 1
A92: 3.7.6. | B92: Adatos tipas - spatula 3/8 | H92: adata spatula 3/8
A93: 3.7.7. | B93: Adatų skaičius ne mažiau 2 vnt. | H93: adata 2
A94: 3.7.8. | B94: Adatos ilgis 6,0 - 6,2 mm | H94: adatos ilgis 6 mm
A95: 3.8. | B95: Besirezorbuojantis sintetinis poliglaktino chirurginis siūlas | C95: 1500 | D95: vnt | E95: 0.9 | F95: =IF(ISBLANK(E95),"", PRODUCT(C95,E95)) -> 1350 | G95: SMI ag. Surgicryl 910. Ref 15200126
A96: 3.8.1. | B96: Poliglaktino chirurginis siūlas , multifilamentinis | H96: Katalogas. 9 -18 puslapis. Poliglaktinas
A97: 3.8.2. | B97: Po 2 sav.išlieka 75 (±5%), po 3 sav. išlieka 40-50 (±5%) stiprumo. Siūlas rezorbuojasi per 56-70 dienų. | H97: Po 3 sav išlieka 50%. Siūlas rezorbuojasi per 56-70 dienų
A98: 3.8.3. | B98: Siūlo storis USP - 3/0 | H98: storis 3/0
A99: 3.8.4. | B99: Siūlo ilgis 70-75 cm | H99: siūko ilgis 75cm
A100: 3.8.5. | B100: Siūlo spalva - Dažytas | H100: dažytas
A101: 3.8.6. | B101: Adatos tipas - Apvali 1/2 | H101: apvali 1/2
A102: 3.8.7. | B102: Adatos ilgis 25-26 mm | H102: 26mm
A103: 3.9. | B103: Besirezorbuojantis sintetinis poliglaktino chirurginis siūlas | C103: 120 | D103: vnt | E103: 0.96 | F103: =IF(ISBLANK(E103),"", PRODUCT(C103,E103)) -> 115.2 | G103: SMI ag. Surgicryl 910. Ref 15400148
A104: 3.9.1. | B104: Poliglaktino chirurginis siūlas , multifilamentinis | H104: Katalogas. 9 -18 puslapis. Poliglaktinas
A105: 3.9.2. | B105: Po 2 sav.išlieka 75 (±5%), po 3 sav. išlieka 40-50 (±5%) stiprumo. Siūlas rezorbuojasi per 56-70 dienų. | H105: Po 3 sav išlieka 50%. Siūlas rezorbuojasi per 56-70 dienų
A106: 3.9.3. | B106: Siūlo storis USP - 1 | H106: storis 1
A107: 3.9.4. | B107: Siūlo ilgis 85-90 cm | H107: siūko ilgis 90cm
A108: 3.9.5. | B108: Siūlo spalva - Dažytas | H108: dažytas
A109: 3.9.6. | B109: Adatos tipas - Apvali 1/2 | H109: apvali 1/2
A110: 3.9.7. | B110: Adatos ilgis 47-48 mm | H110: 48 mm
A111: 3.10. | B111: Besirezorbuojantis sintetinis poliglaktino chirurginis siūlas | C111: 360 | D111: vnt | E111: 0.96 | F111: =IF(ISBLANK(E111),"", PRODUCT(C111,E111)) -> 345.6 | G111: SMI ag. Surgicryl 910. Ref 15400140
A112: 3.10.1. | B112: Poliglaktino chirurginis siūlas , multifilamentinis | H112: Katalogas. 9 -18 puslapis. Poliglaktinas
A113: 3.10.2. | B113: Po 2 sav.išlieka 75 (±5%), po 3 sav. išlieka 40-50 (±5%) stiprumo. Siūlas rezorbuojasi per 56-70 dienų. | H113: Po 3 sav išlieka 50%. Siūlas rezorbuojasi per 56-70 dienų
A114: 3.10.3. | B114: Siūlo storis USP - 1 | H114: storis 1
A115: 3.10.4. | B115: Siūlo ilgis 85-90 cm | H115: siūko ilgis 90cm
A116: 3.10.5. | B116: Siūlo spalva - Dažytas | H116: dažytas
A117: 3.10.6. | B117: Adatos tipas - Apvali 1/2 | H117: apvali 1/2
A118: 3.10.7. | B118: Adatos ilgis 38-40 mm | H118: 40 mm
A119: 3.11. | B119: Besirezorbuojantis sintetinis poliglaktino chirurginis siūlas | C119: 800 | D119: vnt | E119: 0.94 | F119: =IF(ISBLANK(E119),"", PRODUCT(C119,E119)) -> 752 | G119: SMI ag. Surgicryl 910. Ref 15350140
A120: 3.11.1. | B120: Poliglaktino chirurginis siūlas , multifilamentinis | H120: Katalogas. 9 -18 puslapis. Poliglaktinas
A121: 3.11.2. | B121: Po 2 sav.išlieka 75 (±5%), po 3 sav. išlieka 40-50 (±5%) stiprumo. Siūlas rezorbuojasi per 56-70 dienų. | H121: Po 3 sav išlieka 50%. Siūlas rezorbuojasi per 56-70 dienų
A122: 3.11.3. | B122: Siūlo storis USP - 0 | H122: storis 0
A123: 3.11.4. | B123: Siūlo ilgis 85-90 cm | H123: siūko ilgis 90cm
A124: 3.11.5. | B124: Siūlo spalva - Dažytas | H124: dažytas
A125: 3.11.6. | B125: Adatos tipas - Apvali 1/2 | H125: apvali 1/2
A126: 3.11.7. | B126: Adatos ilgis 38-40 mm | H126: 40 mm
E127: Suma be PVM | F127: =IF((COUNT(C38:C126)<>COUNT(F38:F126)),"", SUM(F38:F126)) -> 5112.2 | G127: =IF((COUNT(C38:C126)<>COUNT(F38:F126)),"Neužpildytos visų objektų kainos", "") -> 
E128: PVM suma | F128: =F127*1.05-F127 -> 255.61
E129: Suma su PVM | F129: =IF(ISBLANK(F128), "", SUM(F127:F128)) -> 5367.81
A133: 5. DALIS | B133: BESIREZORBUOJANTIS SINTETINIS IŠ GLIKOLIDO IR KAPRALAKTONO CHIRURGINIS SIŪLAS
A135: Tiekėjo pasiūlymas:
A136: Nr. | B136: Pavadinimas | C136: Kiekis | D136: Mato vienetas | E136: Įkainis be PVM, Eur | F136: Suma be PVM, Eur | G136: Siūlomos prekės, pavadinimas, gamintojas, kodas | H136: Tiekėjo siūlomi parametrai ir parametrą pagrindžiantys dokumentai
A137: 5. | B137: Besirezorbuojantis sintetinis iš glikolido ir kapralaktono chirurginis siūlas
A138: 5.1. | B138: Besirezorbuojantis sintetinis iš glikolido ir kapralaktono chirurginis siūlas | C138: 240 | D138: vnt | E138: 1.17 | F138: =IF(ISBLANK(E138),"", PRODUCT(C138,E138)) -> 280.8 | G138: SMI. Surgicryl Monofast. Ref 16300126
A139: 5.1.1. | B139: Besirezorbuojantis sintetinis, monofilamentinis siūlas, pagamintas iš glikolido ir kapralaktono. | H139: Besirezorbuojantis sintetinis, monopilamentinis, pagamintas iš glikoilido ir kaprolaktono. Katalogas 33-38 psl
A140: 5.1.2. | B140: Pilna rezorbcija po 90-120±5% dienų. Stiprumo išlaikymas po 1 savaitės 50 - 60±10%, po 2 savaičių 20- 30±10% | H140: Pilna rezorbcija po 90-12 dienų. Stiprumo išlaikymas 60% po 1 savaitės (7 dienų),
A141: 5.1.3. | B141: Siūlo storis USP - 2/0 | H141: storis 2/0
A142: 5.1.4. | B142: Siūlo ilgis 70-75 cm | H142: ilgis 75cm
A143: 5.1.5. | B143: Siūlo spalva - Dažytas | H143: dažytas (violet)
A144: 5.1.6. | B144: Adatos tipas - Apvali 1/2 | H144: apvali 1/2
A145: 5.1.7. | B145: Adatos ilgis 26-27mm | H145: 26 mm
A146: 5.2. | B146: Besirezorbuojantis sintetinis iš glikolido ir kapralaktono chirurginis siūlas | C146: 360 | D146: vnt | E146: 1.17 | F146: =IF(ISBLANK(E146),"", PRODUCT(C146,E146)) -> 421.2 | G146: SMI. Surgicryl Monofast. Ref 16200117
A147: 5.2.1. | B147: Besirezorbuojantis sintetinis, monofilamentinis siūlas, pagamintas iš glikolido ir kapralaktono. | H147: Besirezorbuojantis sintetinis, monopilamentinis, pagamintas iš glikoilido ir kaprolaktono. Katalogas 33-38 psl
A148: 5.2.2. | B148: Pilna rezorbcija po 90-120±5% dienų. Stiprumo išlaikymas po 1 savaitės 50 - 60±10%, po 2 savaičių 20- 30±10% | H148: Pilna rezorbcija po 90-12 dienų. Stiprumo išlaikymas 60% po 1 savaitės (7 dienų),
A149: 5.2.3. | B149: Siūlo storis USP - 3/0 | H149: storis 3/0
A150: 5.2.4. | B150: Siūlo ilgis 70-75 cm | H150: ilgis 75cm
A151: 5.2.5. | B151: Siūlo spalva - Dažytas | H151: dažytas (violet)
A152: 5.2.6. | B152: Adatos tipas - Apvali 1/2 | H152: apvali 1/2
A153: 5.2.7. | B153: Adatos ilgis 17-19 mm | H153: 17 mm
A154: 5.3. | B154: Besirezorbuojantis sintetinis iš glikolido ir kapralaktono chirurginis siūlas | C154: 480 | D154: vnt | E154: 1.14 | F154: =IF(ISBLANK(E154),"", PRODUCT(C154,E154)) -> 547.2 | G154: SMI. Surgicryl Monofast. Ref 16200126
A155: 5.3.1. | B155: Besirezorbuojantis sintetinis, monofilamentinis siūlas, pagamintas iš glikolido ir kapralaktono. | H155: Besirezorbuojantis sintetinis, monopilamentinis, pagamintas iš glikoilido ir kaprolaktono. Katalogas 33-38 psl
A156: 5.3.2. | B156: Pilna rezorbcija po 90-120±5% dienų. Stiprumo išlaikymas po 1 savaitės 50 - 60±10%, po 2 savaičių 20- 30±10% | H156: Pilna rezorbcija po 90-12 dienų. Stiprumo išlaikymas 60% po 1 savaitės (7 dienų),
A157: 5.3.3. | B157: Siūlo storis USP - 3/0 | H157: storis 3/0
A158: 5.3.4. | B158: Siūlo ilgis 70-75 cm | H158: ilgis 75cm
A159: 5.3.5. | B159: Siūlo spalva - Dažytas | H159: dažytas (violet)
A160: 5.3.6. | B160: Adatos tipas - Apvali 1/2 | H160: apvali 1/2
A161: 5.3.7. | B161: Adatos ilgis 25-26 mm | H161: 26 mm
A162: 5.4. | B162: Besirezorbuojantis sintetinis iš glikolido ir kapralaktono chirurginis siūlas | C162: 800 | D162: vnt | E162: 1.15 | F162: =IF(ISBLANK(E162),"", PRODUCT(C162,E162)) -> 920 | G162: SMI. Surgicryl Monofast. Ref 16150122
A163: 5.4.1. | B163: Besirezorbuojantis sintetinis, monofilamentinis siūlas, pagamintas iš glikolido ir kapralaktono. | H163: Besirezorbuojantis sintetinis, monopilamentinis, pagamintas iš glikoilido ir kaprolaktono. Katalogas 33-38 psl
A164: 5.4.2. | B164: Pilna rezorbcija po 90-120±5% dienų. Stiprumo išlaikymas po 1 savaitės 50 - 60±10%, po 2 savaičių 20- 30±10% | H164: Pilna rezorbcija po 90-12 dienų. Stiprumo išlaikymas 60% po 1 savaitės (7 dienų),
A165: 5.4.3. | B165: Siūlo storis USP - 4/0 | H165: storis 4/0
A166: 5.4.4. | B166: Siūlo ilgis 70-75 cm | H166: ilgis 75cm
A167: 5.4.5. | B167: Siūlo spalva - Dažytas | H167: dažytas (violet)
A168: 5.4.6. | B168: Adatos tipas - Apvali 1/2 | H168: apvali 1/2
A169: 5.4.7. | B169: Adatos ilgis 20-22 mm | H169: 22 mm
A170: 5.5. | B170: Besirezorbuojantis sintetinis iš glikolido ir kapralaktono chirurginis siūlas | C170: 600 | D170: vnt | E170: 1.21 | F170: =IF(ISBLANK(E170),"", PRODUCT(C170,E170)) -> 726 | G170: SMI. Surgicryl Monofast. Ref 16151519
A171: 5.5.1. | B171: Besirezorbuojantis sintetinis, monofilamentinis siūlas, pagamintas iš glikolido ir kapralaktono. | H171: Besirezorbuojantis sintetinis, monopilamentinis, pagamintas iš glikoilido ir kaprolaktono. Katalogas 33-38 psl
A172: 5.5.2. | B172: Pilna rezorbcija po 90-120±5% dienų. Stiprumo išlaikymas po 1 savaitės 50 - 60±10%, po 2 savaičių 20- 30±10% | H172: Pilna rezorbcija po 90-12 dienų. Stiprumo išlaikymas 60% po 1 savaitės (7 dienų),
A173: 5.5.3. | B173: Siūlo storis USP - 4/0 | H173: storis 4/0
A174: 5.5.4. | B174: Siūlo ilgis 70-75 cm | H174: ilgis 75cm
A175: 5.5.5. | B175: Siūlo spalva - Bespalvis | H175: bespalvis
A176: 5.5.6. | B176: Adatos tipas - Pjaunanti 3/8 | H176: pjaunanti 3/8
A177: 5.5.7. | B177: Adatos ilgis 18-20 mm | H177: 19 mm
A178: 5.6. | B178: Besirezorbuojantis sintetinis iš glikolido ir kapralaktono chirurginis siūlas | C178: 360 | D178: vnt | E178: 1.24 | F178: =IF(ISBLANK(E178),"", PRODUCT(C178,E178)) -> 446.4 | G178: SMI. Surgicryl Monofast. Ref 16350136
A179: 5.6.1. | B179: Besirezorbuojantis sintetinis, monofilamentinis siūlas, pagamintas iš glikolido ir kapralaktono. | H179: Besirezorbuojantis sintetinis, monopilamentinis, pagamintas iš glikoilido ir kaprolaktono. Katalogas 33-38 psl
A180: 5.6.2. | B180: Pilna rezorbcija po 90-120±5% dienų. Stiprumo išlaikymas po 1 savaitės 50 - 60±10%, po 2 savaičių 20- 30±10% | H180: Pilna rezorbcija po 90-12 dienų. Stiprumo išlaikymas 60% po 1 savaitės (7 dienų),
A181: 5.6.3. | B181: Siūlo storis USP - 0 | H181: storis 0
A182: 5.6.4. | B182: Siūlo ilgis 70-90 cm | H182: ilgis 90 cm
A183: 5.6.5. | B183: Siūlo spalva - Dažytas | H183: dažytas (violet)
A184: 5.6.6. | B184: Adatos tipas - Apvali 1/2 | H184: apvali 1/2
A185: 5.6.7. | B185: Adatos ilgis 36-40 mm | H185: 36 mm
A186: 5.7. | B186: Besirezorbuojantis sintetinis iš glikolido ir kapralaktono chirurginis siūlas | C186: 120 | D186: vnt | E186: 1.21 | F186: =IF(ISBLANK(E186),"", PRODUCT(C186,E186)) -> 145.2 | G186: SMI. Surgicryl Monofast. Ref 16101516V
A187: 5.7.1. | B187: Besirezorbuojantis sintetinis, monofilamentinis siūlas, pagamintas iš glikolido ir kapralaktono. | H187: Besirezorbuojantis sintetinis, monopilamentinis, pagamintas iš glikoilido ir kaprolaktono. Katalogas 33-38 psl
A188: 5.7.2. | B188: Pilna rezorbcija po 90-120±5% dienų. Stiprumo išlaikymas po 1 savaitės 50 - 60±10%, po 2 savaičių 20- 30±10% | H188: Pilna rezorbcija po 90-12 dienų. Stiprumo išlaikymas 60% po 1 savaitės (7 dienų),
A189: 5.7.3. | B189: Siūlo storis USP -5/0 | H189: storis 5/0
A190: 5.7.4. | B190: Siūlo ilgis 45-75 cm | H190: ilgis 75cm
A191: 5.7.5. | B191: Siūlo spalva - Dažytas | H191: dažytas (violet)
A192: 5.7.6. | B192: Adatos tipas - pjaunanti 3/8 | H192: pjaunanti 3/8
A193: 5.7.7. | B193: Adatos ilgis 15-16 mm | H193: 16 mm
A194: 5.8. | B194: Besirezorbuojantis sintetinis iš glikolido ir kapralaktono chirurginis siūlas | C194: 420 | D194: vnt | E194: 1.21 | F194: =IF(ISBLANK(E194),"", PRODUCT(C194,E194)) -> 508.2 | G194: SMI. Surgicryl Monofast. Ref 16101516
A195: 5.8.1. | B195: Besirezorbuojantis sintetinis, monofilamentinis siūlas, pagamintas iš glikolido ir kapralaktono. | H195: Besirezorbuojantis sintetinis, monopilamentinis, pagamintas iš glikoilido ir kaprolaktono. Katalogas 33-38 psl
A196: 5.8.2. | B196: Pilna rezorbcija po 90-120±5% dienų. Stiprumo išlaikymas po 1 savaitės 50 - 60±10%, po 2 savaičių 20- 30±10% | H196: Pilna rezorbcija po 90-12 dienų. Stiprumo išlaikymas 60% po 1 savaitės (7 dienų),
A197: 5.8.3. | B197: Siūlo storis USP -5/0 | H197: storis 5/0
A198: 5.8.4. | B198: Siūlo ilgis 45-75 cm | H198: ilgis 75cm
A199: 5.8.5. | B199: Siūlo spalva - Bespalvis | H199: bespalvis
A200: 5.8.6. | B200: Adatos tipas - pjaunanti 3/8 | H200: pjaunanti 3/8
A201: 5.8.7. | B201: Adatos ilgis 15-16 mm | H201: 16 mm
A202: 5.9. | B202: Besirezorbuojantis sintetinis iš glikolido ir kapralaktono chirurginis siūlas | C202: 120 | D202: vnt | E202: 1.22 | F202: =IF(ISBLANK(E202),"", PRODUCT(C202,E202)) -> 146.4 | G202: SMI. Surgicryl Monofast. Ref 16071512
A203: 5.9.1. | B203: Besirezorbuojantis sintetinis, monofilamentinis siūlas, pagamintas iš glikolido ir kapralaktono. | H203: Besirezorbuojantis sintetinis, monopilamentinis, pagamintas iš glikoilido ir kaprolaktono. Katalogas 33-38 psl
A204: 5.9.2. | B204: Pilna rezorbcija po 90-120±5% dienų. Stiprumo išlaikymas po 1 savaitės 50 - 60±10%, po 2 savaičių 20- 30±10% | H204: Pilna rezorbcija po 90-12 dienų. Stiprumo išlaikymas 60% po 1 savaitės (7 dienų),
A205: 5.9.3. | B205: Siūlo storis USP -6/0 | H205: storis 6/0
A206: 5.9.4. | B206: Siūlo ilgis 45-75 cm | H206: ilgis 45cm
A207: 5.9.5. | B207: Siūlo spalva - Bespalvis arba dažytas | H207: bespalvis
A208: 5.9.6. | B208: Adatos tipas - pjaunanti 3/8 | H208: pjaunanti 3/8
A209: 5.9.7. | B209: Adatos ilgis 12-13 mm | H209: 12 mm
A210: 5.10. | B210: Besirezorbuojantis sintetinis iš glikolido ir kapralaktono chirurginis siūlas | C210: 120 | D210: vnt. | E210: 1.23 | F210: =IF(ISBLANK(E210),"", PRODUCT(C210,E210)) -> 147.6 | G210: SMI. Surgicryl Monofast. Ref 16201519
A211: 5.10.1. | B211: Besirezorbuojantis sintetinis, monofilamentinis siūlas, pagamintas iš glikolido ir kapralaktono. | H211: Besirezorbuojantis sintetinis, monopilamentinis, pagamintas iš glikoilido ir kaprolaktono. Katalogas 33-38 psl
A212: 5.10.2. | B212: Pilna rezorbcija po 90-120±5% dienų. Stiprumo išlaikymas po 1 savaitės 50 - 60±10%, po 2 savaičių 20- 30±10% | H212: Pilna rezorbcija po 90-12 dienų. Stiprumo išlaikymas 60% po 1 savaitės (7 dienų),
A213: 5.10.3. | B213: Siūlo storis 3/0 | H213: storis 3/0
... 49 more rows

Sheet Subtiekėjai ir priedai
A2: Ūkio subjektai (įskaitant kvazisubtiekėjus - fiziniai asmenys, kuriuos ketinama įdarbinti pirkimo laimėjimo atveju), kurių pajėgumais tiekėjas remiasi, kad atitiktų keliamus kvalifikacijos reikalavimus:
A5: Pavadinimas* | C5: Kodas, adresas | F5: Perduodami įsipareigojimai | I5: Perduodamų įsipareigojimų dalis nuo visos pirkimo sutarties (Eur arba %) | K5: Kval. Reikalavimo Nr.
A10: Subtiekėjams / subteikėjams / subrangovams numatomos perduoti veiklos (privaloma nurodyti) ir šių ūkio subjektų pavadinimai (jei žinomi):
A12: Pavadinimas | C12: Kodas, adresas | F12: Perduodama veikla* | I12: Perduodamos veiklos dalis nuo visos pirkimo sutarties (Eur arba %)
A19: Kartu su pasiūlymu pateikiami šie dokumentai:
A21: Nr. | B21: Dokumento pavadinimas | H21: Dokumentas yra konfidencialus? Taip/Ne
A22: 1 | B22: Jungtinės veiklos kopija (jei taikoma)
A23: 2 | B23: Europos bendrasis viešųjų pirkimų dokumentas | H23: Ne
A24: 3 | B24: Subtiekimo sutartis, ketinimų protokolas, preliminarios sutartys ar kiti dokumentai, patvirtinantys, kad laimėjus pirkimą tiekėjui bus prieinami kitų ūkio subjektų ištekliai (jei pasitelkiami kvalifikacijos atitikimui)
A25: 4 | B25: Katalogas | H25: Ne
A34: Pasiūlyme nurodyta Prekės kaina, išskyrus jos sudedamąsias dalis, subtiekėjai, taip pat kita informacija, kuri teisės aktų nustatyta tvarka turi būti skelbiama arba kitokiu būdu viešai prieinama visuomenei, nėra laikoma konfidencialia informacija. Konfidencialią informaciją sudaro, visų pirma, komercinė (gamybinė) paslaptis ir konfidencialieji pasiūlymų aspektai. Informacija, kurią viešai skelbti įpareigoja Lietuvos Respublikos įstatymai, negali būti tiekėjo nurodoma kaip konfidenciali, todėl, tiekėjui nurodžius tokią informaciją kaip konfidencialią, perkančioji organizacija turi teisę ją skelbti. Jei tiekėjas nenurodo konfidencialios informacijos, laikoma, kad konfidencialios informacijos tiekėjo pasiūlyme nėra. Vadovaujantis Informacijos viešinimo Centrinėje viešųjų pirkimų informacinėje sistemoje tvarkos aprašu, patvirtintu Viešųjų pirkimų tarnybos direktoriaus 2017 m. birželio 19 d. įsakymu Nr. 1S-91 „Dėl Informacijos viešinimo Centrinėje viešųjų pirkimų informacinėje sistemoje tvarkos aprašo patvirtinimo“, perkančioji organizacija laimėjusio dalyvio pasiūlymą, išskyrus informaciją, kurią tiekėjas nurodė kaip konfidencialią, paskelbs CVP IS.
A37: Tiekėjo arba jo įgalioto asmens pareigų pavadinimas: | E37: Direktorius
A39: Pasirašančio asmens vardas ir pavardė: | E39: Liutauras Dauderys
A86: 6890-2 2022-10-20 10:21:15
